Cogmind - Beta 14 @@@ ROGUE MODE // 2024.09.09 @ 22:18:01 Player: Maulwurf Result: Destroyed by G-47 Trooper with Particle Gun Performance ------------- Evolutions (2) 1000 Regions Visited (4) 800 Robots Destroyed (16) 80 Value Destroyed (438) 438 Prototype IDs (3) 60 Alien Tech Used (0) 0 Bonus (0) 0 TOTAL SCORE: 2378 Bonus ------- None Cogmind --------- Core Integrity 0/550 Matter 300/300 Energy 100/100 System Corruption 3% Temperature Cool (9) Movement Core (50) Location -8/Materials Parts ------- > --- POWER (1) -------- (None) > --- PROPULSION (4) --- (None) > --- UTILITY (4) ------ (None) > --- WEAPON (2) ------- (None) > --- INVENTORY (5) ---- Light Treads Light Treads Heat Sink Small Laser Light Assault Rifle Peak State ------------ > --- POWER ------------ Light Ion Engine > --- PROPULSION ------- Light Treads Light Treads Light Treads > --- UTILITY ---------- Small Storage Unit Sensor Array Terrain Scanner > --- WEAPON ----------- Guided EMP Blaster > --- INVENTORY -------- Light Treads Drone Bay Small Laser Assault Rifle Light Assault Rifle Light Assault Rifle [Rating: 20] Favorites ----------- Power Light Ion Engine Engine Light Ion Engine Propulsion Aluminum Leg Treads Light Treads Leg Aluminum Leg Utility Small Storage Unit Device Sensor Array Storage Small Storage Unit Protection Light Armor Plating Weapon Assault Rifle Energy Gun Medium Laser Energy Cannon Light EM Pulse Cannon Ballistic Gun Assault Rifle Launcher Guided EMP Blaster Build | -11 -10 -9 -9 -8 ------- Run | Yrd Mat Mat Sto Mat Slots Evolved 4 | . . 2 . 2 Power . | . . . . . Propulsion 2 | . . 1 . 1 Utility 2 | . . 1 . 1 Weapon . | . . . . . Parts Attached 22 | 5 2 1 14 . Power 3 | 1 . . 2 . Engine 3 | 1 . . 2 . Core . | . . . . . Reactor . | . . . . . Propulsion 8 | 2 . 1 5 . Treads 5 | . . . 5 . Leg 3 | 2 . 1 . . Wheel . | . . . . . Hover . | . . . . . Flight . | . . . . . Utility 6 | 1 1 . 4 . Device 4 | . 1 . 3 . Storage 1 | 1 . . . . Processor . | . . . . . Hackware . | . . . . . Protection 1 | . . . 1 . Artifact . | . . . . . Weapon 5 | 1 1 . 3 . Energy Gun 1 | . 1 . . . Energy Cannon 1 | . . . 1 . Ballistic Gun 2 | 1 . . 1 . Ballistic Cannon . | . . . . . Launcher 1 | . . . 1 . Special Weapon . | . . . . . Impact Weapon . | . . . . . Slashing Weapon . | . . . . . Piercing Weapon . | . . . . . Special Melee Weapon . | . . . . . Unidentified Prototypes 1 | . . . 1 . Parts Lost 9 | . . . 1 8 Power 1 | . . . . 1 Propulsion 3 | . . . . 3 Utility 3 | . . . . 3 Weapon 2 | . . . 1 1 Highest Loss Streak 7 | . . . 1 7 To Critical Strikes . | . . . . . Average Slot Usage (%) 85 | . 94 85 89 57 Engine 8 | . 14 11 9 . Treads 12 | . . . 14 24 Leg 18 | . 28 33 17 . Device 15 | . 8 8 19 15 Storage 11 | . 14 11 11 9 Energy Gun 5 | . 14 11 2 . Energy Cannon 1 | . . . 2 . Ballistic Gun 7 | . 14 11 7 . Launcher 3 | . . . 4 6 Peak Build Rating 20 | 5 7 8 20 20 Average Rating 12 | 4 6 7 14 15 On Entrance 7 | . 5 7 7 20 Naked Turns 7 | . . . . 7 Heaviest Build 21 | 10 13 13 21 20 Greatest Support 60 | 20 20 30 60 60 Greatest Overweight (x) . | . . . . . Average Overweight (x) . | . . . . . Largest Inventory Capacity 8 | 8 8 8 8 8 Average Capacity 7 | 7 8 8 8 7 Most Carried 8 | 5 8 8 8 8 Average Carried 6 | 3 5 7 6 7 Final Capacity 8 | 8 8 8 8 5 Final Carried 8 | 5 8 8 8 5 Class Distribution -------------------- 84% | Mutant 15% | Commander-Mutant Dominant Class ---------------- Mutant | -10/Materials Mutant | -9/Materials Mutant | -9/Storage Mutant | -8/Materials Resources | -11 -10 -9 -9 -8 ----------- Run | Yrd Mat Mat Sto Mat Matter Collected 568 | 227 73 19 229 20 Remotely . | . . . . . Salvage Created 687 | . 101 60 487 39 Parts 34 | . 4 . 27 3 Haulers Intercepted . | . . . . . Recyclers Shooed . | . . . . . Parts Field Recycled . | . . . . . Retrieved Matter . | . . . . . Parts Self-Destructed . | . . . . . Prevented . | . . . . . Kills | -11 -10 -9 -9 -8 ------- Run | Yrd Mat Mat Sto Mat Combat Hostiles Destroyed 12 | . 2 1 9 . Guns 7 | . 2 . 5 . Cannons 3 | . . . 3 . AOE 1 | . . . 1 . Classes Destroyed 7 | . 1 1 4 1 Worker 1 | . . . 1 . Builder 1 | . . . 1 . Recycler 1 | . . . 1 . Watcher 1 | . . . . 1 Swarmer 4 | . . . 4 . Grunt 2 | . 2 . . . Sentry 6 | . . 1 5 . Best Kill Streak 4 | . 2 1 4 1 Combat Bots Only 4 | . 2 1 4 . Max Kills in Single Turn 2 | . 1 1 2 1 Gunslinging . | . . . . . Exploded 1 | . . . 1 . Melee . | . . . . . Uniques/NPCs Destroyed . | . . . . . Combat | -11 -10 -9 -9 -8 -------- Run | Yrd Mat Mat Sto Mat Hostile Shots Fired 183 | . 14 11 65 93 Missed 52 | . 5 5 25 17 Damage Taken 2054 | . 120 92 635 1207 Core 742 | . 63 . 121 558 Absorbed by Shields . | . . . . . Core Remaining (%) 81 | 100 74 . 69 . Volleys Fired 45 | . 10 3 31 1 Largest 2 | . 2 2 2 1 Hottest 76 | . 70 70 76 50 Shots Fired 85 | . 20 6 58 1 Gun 66 | . 20 6 40 . Cannon 17 | . . . 17 . Launcher 2 | . . . 1 1 Special . | . . . . . Kinetic 52 | . 10 3 39 . Thermal 14 | . 10 3 1 . Explosive . | . . . . . Electromagnetic 19 | . . . 18 1 Robot Hit Streak 9 | . 6 7 9 9 Robot Miss Streak 4 | . 4 . 3 . Penetration Max . | . . . . . Secondary Targets . | . . . . . Shots Hit Robots 51 | . 11 5 34 1 Core Hits 22 | . 5 1 15 1 Critical Kills . | . . . . . Critical Parts Destroyed . | . . . . . Critical Strikes 2 | . . 2 . . Burn 2 | . . 2 . . Melee Attacks . | . . . . . Impact . | . . . . . Slashing . | . . . . . Piercing . | . . . . . Sneak Attacks . | . . . . . Combat Hostiles . | . . . . . Follow-up Attacks . | . . . . . Damage Inflicted 837 | . 134 65 600 38 Guns 493 | . 134 65 294 . Cannons 234 | . . . 234 . Explosions 109 | . . . 71 38 Melee . | . . . . . Ramming 1 | . . . 1 . Kinetic 369 | . 46 29 294 . Thermal 168 | . 88 36 44 . Explosive . | . . . . . Electromagnetic 299 | . . . 261 38 Impact . | . . . . . Slashing . | . . . . . Piercing . | . . . . . Highest Corruption 3 | . . . 2 3 Average Corruption 1 | . . . 1 2 Corruption Purged . | . . . . . Corruption Blocked . | . . . . . Effects 6 | . . . 4 2 Message Errors 1 | . . . . 1 Heat Flow Errors 3 | . . . 2 1 Data Loss (minor) 2 | . . . 2 . Overload Shots . | . . . . . Overflow Damage . | . . . . . Projectiles . | . . . . . Explosions . | . . . . . Melee . | . . . . . Knockbacks . | . . . . . Impact . | . . . . . Kinetic . | . . . . . Secondary . | . . . . . Self-Inflicted Damage 97 | . . . 60 37 Shots 4 | . . . 2 2 Rammed 1 | . . . 1 . Targets Rammed 1 | . . . 1 . Kicked . | . . . . . Crushed . | . . . . . Highest Temperature 270 | . 174 18 270 175 Average Temperature 58 | . 91 15 44 74 Received Heat Transfer 993 | . 84 36 99 774 Siege Activations . | . . . . . Robots Corrupted . | . . . . . Combat Hostiles . | . . . . . Parts Fried 2 | . . . 1 1 Impact Corruptions . | . . . . . Robots Melted 1 | . . 1 . . Combat Hostiles 1 | . . 1 . . Parts Melted 2 | . . 2 . . Heat Transferred 568 | . 259 259 50 . Parts Sabotaged . | . . . . . Parts Stolen . | . . . . . Parts Stripped . | . . . . . Power Chain Reactions 3 | . . . 2 1 Alert | -11 -10 -9 -9 -8 ------- Run | Yrd Mat Mat Sto Mat Peak Influence 224 | . 66 87 224 62 Initial 36 | . . 27 36 20 Average 66 | . 48 40 89 27 Maximum Alert Level 1 | . . . 1 . Low Security (%) 99 | 100 100 100 99 100 Level 1 . | . . . . . Level 2 . | . . . . . Level 3 . | . . . . . Level 4 . | . . . . . Level 5 . | . . . . . High Security . | . . . . . Max Security . | . . . . . Squads Dispatched 1 | . . . . 1 Investigation . | . . . . . Extermination . | . . . . . Reinforcement 1 | . . . . 1 Assault . | . . . . . Garrison . | . . . . . Intercept . | . . . . . Searches Triggered . | . . . . . Construction Impeded . | . . . . . Haulers Reinforced . | . . . . . Active Scanning Responses . | . . . . . Cargo Convoy Interrupts . | . . . . . Stealth | -11 -10 -9 -9 -8 --------- Run | Yrd Mat Mat Sto Mat Distress Signals 1 | . . . 1 . Communications Jammed . | . . . . . Distress Signals . | . . . . . Times Spotted 28 | . 2 5 14 7 Peak Tracking Total 7 | . 2 4 7 3 Tactical Retreats 5 | . . . 3 2 Traps | -11 -10 -9 -9 -8 ------- Run | Yrd Mat Mat Sto Mat Traps Triggered 7 | . . . 5 2 Indirectly . | . . . . . Trap Hack Attempts . | . . . . . Triggered . | . . . . . Disarmed . | . . . . . Reprogrammed . | . . . . . Reused . | . . . . . Traps Extracted . | . . . . . Installed . | . . . . . Triggered . | . . . . . Machines | -11 -10 -9 -9 -8 ---------- Run | Yrd Mat Mat Sto Mat Machines Disabled 1 | . . . 1 . Max in Single Turn 1 | . . . 1 . Machines Repaired . | . . . . . Machines Dismantled . | . . . . . Machines Sabotaged . | . . . . . Overloaded Fab Kills . | . . . . . Hacking | -11 -10 -9 -9 -8 --------- Run | Yrd Mat Mat Sto Mat Machines Accessed 8 | . 2 . 6 . Terminals 8 | . 2 . 6 . Fabricators . | . . . . . Repair Stations . | . . . . . Recycling Units . | . . . . . Scanalyzers . | . . . . . Garrison Access . | . . . . . Total Hacks 15 | . 5 . 10 . Successful 8 | . 3 . 5 . Failed 7 | . 2 . 5 . Catastrophic 1 | . . . 1 . Database Lockouts . | . . . . . Manual . | . . . . . Terminals 15 | . 5 . 10 . Fabricators . | . . . . . Repair Stations . | . . . . . Recycling Units . | . . . . . Scanalyzers . | . . . . . Garrison Access . | . . . . . Terminal Hacks 8 | . 3 . 5 . Record 1 | . . . 1 . Robot Analysis 1 | . 1 . . . Prototype ID Bank 1 | . . . 1 . Open Door 3 | . . . 3 . Emergency Access Points 1 | . 1 . . . Zone Layout 1 | . 1 . . . Fabricator Hacks . | . . . . . Repair Station Hacks . | . . . . . Recycling Unit Hacks . | . . . . . Scanalyzer . | . . . . . Garrison Access Hacks . | . . . . . Unauthorized Hacks . | . . . . . Terminals . | . . . . . Fabricators . | . . . . . Repair Stations . | . . . . . Recycling Units . | . . . . . Scanalyzers . | . . . . . Garrison Access . | . . . . . Data Cores Recovered . | . . . . . Used . | . . . . . Hacking Detections 5 | . 1 . 4 . Full Trace Events . | . . . . . Feedback Events . | . . . . . Feedback Blocked . | . . . . . Robot Schematics Acquired . | . . . . . Robots Built . | . . . . . Authchips . | . . . . . Time . | . . . . . Total Robot Build Rating . | . . . . . Part Schematics Acquired . | . . . . . Parts Built . | . . . . . Authchips . | . . . . . Time . | . . . . . Total Part Build Rating . | . . . . . Parts Repaired . | . . . . . Time . | . . . . . Parts Recycled . | . . . . . Recycled Matter . | . . . . . Retrieved Matter . | . . . . . Retrieved Components . | . . . . . Parts Scanalyzed . | . . . . . Part Schematics Acquired . | . . . . . Parts Damaged . | . . . . . Bothacking | -11 -10 -9 -9 -8 ------------ Run | Yrd Mat Mat Sto Mat Used RIF Installer . | . . . . . Robots Hacked . | . . . . . Non-combat . | . . . . . Combat . | . . . . . Robot Hacks Applied . | . . . . . Relay Couplers Released . | . . . . . Fabnet Peak Effective % . | . . . . . Robots Rewired . | . . . . . Allies Hacked . | . . . . . Hacks Repelled . | . . . . . Allies | -11 -10 -9 -9 -8 -------- Run | Yrd Mat Mat Sto Mat Total Allies 10 | . . . 10 . Largest Group 10 | . . . 10 1 Highest-Rated Group 88 | . . . 88 7 Highest-Rated Ally 16 | . . . 16 7 Total Orders . | . . . . . Ally Attacks 19 | . . . 19 . Total Damage 182 | . . . 182 . Kills 1 | . . . 1 . Allies Corrupted . | . . . . . Allies Melted . | . . . . . Intel | -11 -10 -9 -9 -8 ------- Run | Yrd Mat Mat Sto Mat Robot Analysis Total 1 | . 1 . . . Derelict Logs Recovered . | . . . . . Drone Launches 3 | . . . 3 . Drone Recoveries 2 | . . . 2 . Exploration | -11 -10 -9 -9 -8 ------------- Run | Yrd Mat Mat Sto Mat Turns Passed 1818 | 66 368 108 1010 266 Spaces Moved 1026 | 46 263 63 539 115 Core 8 | 8 . . . . Treads 324 | . . . 209 115 Legs 694 | 38 263 63 330 . Wheels . | . . . . . Hover . | . . . . . Flight . | . . . . . Fastest Speed 50 | 50 120 120 120 160 Average Speed 132 | 107 120 120 135 160 Slowest Speed 160 | 120 120 120 160 160 Overloaded Moves . | . . . . . Propulsion Burnouts . | . . . . . Robots Hopped . | . . . . . Cave-ins Triggered . | . . . . . Exploration Rate (%) 26 | 3 39 11 61 20 Regions Visited 4 Branch Regions 1 Pre-discovered Areas . | . . . . . Known Exits Taken . | . . . . . Unknown Exits Taken 4 | 1 1 1 1 . Scrap Searched . | . . . . . Spaces Dug . | . . . . . Terrain Destroyed 31 | . . . 27 4 Melee . | . . . . . Projectile . | . . . . . AOE 31 | . . . 27 4 Terrain Rammed . | . . . . . Walls Destroyed . | . . . . . Machines Disabled . | . . . . . Actions | -11 -10 -9 -9 -8 --------- Run | Yrd Mat Mat Sto Mat Total 1411 | 62 295 90 768 196 Wait 275 | 2 16 23 154 80 Move 1022 | 45 262 62 538 115 Hop . | . . . . . Pick Up 27 | 10 5 . 12 . Fast Attach . | . . . . . Attach 22 | 5 2 1 14 . Detach 7 | . . 1 6 . Swap . | . . . . . Drop 6 | . . . 6 . Fire 45 | . 10 3 31 1 Melee . | . . . . . Ram . | . . . . . Kick . | . . . . . Crush 1 | . . . 1 . Escape Stasis . | . . . . . Rewire 6 | . . . 6 . Trap . | . . . . . Miscellaneous . | . . . . . Route ------- -11/Scrapyard -10/Materials (discovered 2 exits: [*Mat] / [*Min]) -9/Materials -9/Storage -8/Materials History --------- Turn | Location | Event 24 | -11/Scrapyard | Discovered new exit (range 15) 67 | -11/Scrapyard | Entered Materials 189 | -10/Materials | Discovered new exit (range 14) 303 | -10/Materials | Build established: Mutant 388 | -10/Materials | Discovered new exit (range 10) 435 | -10/Materials | Entered another Materials area 435 | -9/Materials | Evolved 2 slots: Propulsion x1, Utility x1 493 | -9/Materials | Discovered new exit (range 13) 543 | -9/Materials | Entered Storage 1143 | -9/Storage | Assisted by bots powering up and referring to "LRC-V3" 1473 | -9/Storage | Lost 7 allies 1518 | -9/Storage | Discovered new exit (range 15) 1553 | -9/Storage | Entered Materials 1553 | -8/Materials | Accompanied by 1 ally 1553 | -8/Materials | Evolved 2 slots: Propulsion x1, Utility x1 1800 | -8/Materials | Core integrity fell below 50% 1813 | -8/Materials | Core integrity fell below 20% 1819 | -8/Materials | Destroyed by G-47 Trooper with Particle Gun Last Messages --------------- 01749_ System corrupted: Heat flow error (+179). 01749_ Critical hit (Burn: +37). 01759_ Gui. EMP Blaster destroyed. 01760_ K-01 Serf collects debris. 01765_ 1O3MMIXOFK TPDPGKZY/KG7GNNSGB UBC 01769_ K-01 Serf collects debris. 01778_ Lgt. Treads destroyed. 01779_ K-01 Serf collects debris. 01783_ Terrain Scanner destroyed. 01786_ Sensor Array destroyed. 01786_ K-01 Serf collects debris. 01796_ Lgt. Treads destroyed. 01799_ K-01 Serf collects debris. 01801_ Lgt. Treads destroyed. 01803_ K-01 Serf collects debris. 01812_ Sml. Storage Unit destroyed. 01813_ K-01 Serf collects debris. 01816_ Critical hit (Burn: +37). 01816_ K-01 Serf collects debris. 01817_ G-47 Trooper destroyed. Map ----- +----------------------------------------------------+ | T #??????????????????????????????????????????????? | | #?#????????????????????????????????????????????? | | #??????????????????????????????????????????????? | | ####?????????????????????????????????????????????? | | #????????????????????????????????????????????????? | | #???#????????????????????????????????????????????? | | #????????????????????????????????????????????????? | | #???#????????????????????????????????????????????? | | ##???????????????????????????????????????????????? | | #????????????????????????????????????????????????? | | #?????#??????????????????????????????????????????? | | ##???????????????????????????????????????????????? | | #???????????????????????????????????????????????? | | # ????? ????????????????????????????????????????? | | #????????? ?????????????????????????????????????? | | ?????????? "???? ???????????????????????????????? | | #######???? "????????????????????????????????????? | | ""???????????????????????????????????? | | #######???] ? ???#????????????????????????????? | | ?????????? ? !? ??????#???????????????????????? | | ?????????? """ ??????????????????????????????? | | ???????#?? """ ############????????????????????? | | ??#####??? """ "# #????????????????????? | | ??# #??? T# k #???? ???????????????? | | ??# #??? ] "# g #????????????????????? | | #### ##### ## g![@[ #????????????????????? | | "" / ####m##+####????????????????????? | | "" # ###+##+#??# =%#???????????????????????? | | "" # # #??# #?????#?????????????????? | | + + "S =#??# #######?????????????????? | | # ###### """ #?## #?????????????????? | | # #?? ?# "" #??# #?????????????????? | | #### #????#! #### ##????????????????? | | ???# #????# + ????????????? | | ???# #????######### #####+#####?????????????? | | ???? ????????#????# #???????????????????????? | | ????#?????????????#||====#???????????????????????? | | ??????????????????#||====#???????????????????????? | | ??????????????????########??? ???????????????????? | | ???????????#?????#?????#?????????????????????????? | | ?????????????????????????????#???????????????????? | | | | | | | | | | | | | | | | | | | +----------------------------------------------------+ Best States ------------- Heat Dissipation 31 Energy Generation 10 Energy Capacity 125 Matter Stores 300 Matter Capacity 300 Sight Range 16 Robot Scan Range 14 Terrain Scan Range 14 Terrain Scan Density 10 Armor Coverage 150 Evasion (%) 55 Recoil Reduction 3 Item Schematics ----------------- None Robot Schematics ------------------ None Fabricated ------------ Nothing Alien Tech Used ----------------- None Achievements -------------- The More The Merrier Challenges ------------ None Game ------ Seed ArmageddonAntimissileBoregun Manual? 0 Play Time 00:26:53 Cumulative 7.3 hours Start 2024.09.09 @ 21:48:10 End 2024.09.09 @ 22:18:01 Sessions 1 Manual Loads 0 Difficulty Rogue Special Mode None Game No. 19 Rogue 19 Adventurer 0 Explorer 0 Win Type - Total 0 Types 0/0/0/0/0/0/0/0/0 Lore% 10 Gallery% 7 Achievement% 13 Wizard Run 0 Options --------- Layout 0 ASCII 0 Keyboard 1 Movement Numpad Keybinds 0 Fullscreen 1 Font 18/SmallcapsGlow Map View 76x50 Zoom Use 0% Tactical HUD 1 Map Filters NONE Filters NONE Steam 1 RUN: 4112fa01-b63a-42d8-ab63-d8036159c82d